Cogmind - Beta 10.2 @@@ ROGUE MODE // 2021.07.08 @ 18:07:06 Player: zapruda Result: Destroyed by G-47 Trooper with Particle Gun Performance ------------- Evolutions (2) 1000 Regions Visited (4) 800 Robots Destroyed (46) 230 Value Destroyed (1286) 1286 Prototype IDs (5) 100 Alien Tech Used (0) 0 Bonus (96) 96 TOTAL SCORE: 3512 Bonus ------- High Alert Combat Kills 96 Cogmind --------- Core Integrity 0/550 Matter 37/300 Energy 100/100 System Corruption 0% Temperature Cool (9) Movement Core (150) Ox2 Location -8/Materials Parts ------- > --- POWER (1) -------- (None) > --- PROPULSION (5) --- (None) > --- UTILITY (3) ------ Medium Storage Unit Improved Signal Interpreter > --- WEAPON (2) ------- (None) > --- INVENTORY (8) ---- Improved Heat Sink Cooling System Peak State ------------ > --- POWER ------------ Light Ion Engine > --- PROPULSION ------- Armored Wheel Armored Wheel Armored Wheel > --- UTILITY ---------- Signal Interpreter Bomb Drone Bay > --- WEAPON ----------- Backup Laser I Beam Rifle > --- INVENTORY -------- Cooling System Medium Battery Light Assault Rifle [Rating: 25] Favorites ----------- Power Improved Ion Engine Engine Improved Ion Engine Power Core Light Nuclear Core Propulsion Armored Wheel Treads Light Treads Leg Aluminum Leg Wheel Armored Wheel Flight Unit Flight Unit Utility Medium Storage Unit Device Bomb Drone Bay Storage Medium Storage Unit Processor Signal Interpreter Weapon Beam Cannon Energy Gun Particle Gun Energy Cannon Beam Cannon Ballistic Gun Light Assault Rifle Ballistic Cannon Improved Light Cannon Launcher Rocket Launcher Special Melee Weapon Datajack Build | -11 -10 -10 -9 -8 ------- Run | Scr Mat Min Mat Mat Slots Evolved 4 | . . . 2 2 Power . | . . . . . Propulsion 3 | . . . 1 2 Utility 1 | . . . 1 . Weapon . | . . . . . Parts Attached 76 | 7 13 11 33 12 Power 6 | 1 1 1 1 2 Engine 5 | 1 . 1 1 2 Core 1 | . 1 . . . Reactor . | . . . . . Propulsion 25 | 2 4 6 9 4 Treads 3 | . 2 . 1 . Leg 4 | . . 2 . 2 Wheel 6 | 2 . . 3 1 Hover . | . . . . . Flight 12 | . 2 4 5 1 Utility 17 | 2 3 2 9 1 Device 8 | 1 1 . 5 1 Storage 6 | 1 1 2 2 . Processor 3 | . 1 . 2 . Hackware . | . . . . . Protection . | . . . . . Artifact . | . . . . . Weapon 28 | 2 5 2 14 5 Energy Gun 13 | 2 2 . 7 2 Energy Cannon 3 | . 2 . 1 . Ballistic Gun 4 | . 1 2 . 1 Ballistic Cannon 2 | . . . 1 1 Launcher 5 | . . . 4 1 Special Weapon . | . . . . . Impact Weapon . | . . . . . Slashing Weapon . | . . . . . Piercing Weapon . | . . . . . Special Melee Weapon 1 | . . . 1 . Unidentified Prototypes 1 | . . . 1 . Parts Lost 28 | . 3 4 4 17 Power 4 | . . 1 . 3 Propulsion 9 | . . 1 1 7 Utility 3 | . . . 1 2 Weapon 12 | . 3 2 2 5 Highest Loss Streak 13 | . 2 4 3 13 Average Slot Usage (%) 87 | . 98 72 90 58 Engine 10 | . 12 1 11 6 Treads 6 | . 20 . . . Leg 1 | . . 11 . 3 Wheel 14 | . 4 . 25 1 Flight 7 | . 3 16 6 13 Device 4 | . 5 . 4 5 Storage 10 | . 14 14 7 9 Processor 12 | . 8 14 15 9 Energy Gun 8 | . 11 3 9 1 Energy Cannon 4 | . 13 . . 2 Ballistic Gun 1 | . 1 5 1 1 Launcher 2 | . . . 4 3 Naked Turns . | . . . . . Heaviest Build 24 | 12 20 16 24 23 Greatest Support 40 | 26 40 20 36 28 Greatest Overweight (x) 6 | . 4 2 3 6 Average Overweight (x) . | . . . . . Largest Inventory Capacity 10 | 6 8 8 10 8 Average Capacity 7 | 5 7 6 6 8 Most Carried 8 | 6 8 8 8 7 Average Carried 5 | 3 7 5 5 4 Final Capacity 8 | 6 8 4 8 8 Final Carried 8 | 6 8 4 8 2 Class Distribution -------------------- 72% | Mutant 24% | Scavenger-Mutant 3% | Sprinter Dominant Class ---------------- Mutant | -10/Materials Mutant | -10/Mines Mutant | -9/Materials Mutant | -8/Materials Resources | -11 -10 -10 -9 -8 ----------- Run | Scr Mat Min Mat Mat Matter Collected 1035 | 270 103 59 517 86 Remotely 63 | 33 30 . . . Salvage Created 1361 | 95 167 38 687 374 Parts 82 | 1 12 2 44 23 Haulers Intercepted 4 | . . . 4 . Recyclers Shooed 2 | . . . 1 1 Parts Field Recycled . | . . . . . Retrieved Matter . | . . . . . Parts Self-Destructed . | . . . . . Prevented . | . . . . . Kills | -11 -10 -10 -9 -8 ------- Run | Scr Mat Min Mat Mat Combat Hostiles Destroyed 28 | . 5 2 9 12 Guns 11 | . 2 2 5 2 Cannons 6 | . 3 . . 3 AOE 11 | . . . 4 7 Classes Destroyed 11 | 1 4 . 2 4 Worker 4 | . 1 . 2 1 Builder 1 | . . . . 1 Hauler 4 | . . . 4 . Recycler 3 | 1 . . 2 . Operator 1 | . . . . 1 Watcher 5 | . 1 . 4 . Swarmer 6 | . 3 2 1 . Grunt 15 | . 2 . 5 8 Duelist 2 | . . . . 2 Protector 1 | . . . . 1 Sentry 4 | . . . 3 1 Best Kill Streak 10 | 1 2 2 4 10 Combat Bots Only 7 | . 2 2 2 7 Max Kills in Single Turn 2 | 1 1 1 2 2 Gunslinging . | . . . . . Exploded 2 | . . . 2 2 Melee . | . . . . . Uniques/NPCs Destroyed . | . . . . . Combat | -11 -10 -10 -9 -8 -------- Run | Scr Mat Min Mat Mat Damage Taken 3310 | . 387 421 892 1610 Core 1004 | . 92 112 248 552 Absorbed by Shields . | . . . . . Core Remaining (%) 52 | 100 . 18 38 . Volleys Fired 151 | 2 32 8 78 31 Largest 2 | 2 2 1 2 2 Hottest 133 | 80 120 50 101 133 Shots Fired 200 | 4 54 8 90 44 Gun 104 | 4 19 8 60 13 Cannon 61 | . 35 . 8 18 Launcher 35 | . . . 22 13 Special . | . . . . . Kinetic 27 | . 1 . 9 17 Thermal 127 | 4 53 8 48 14 Explosive 35 | . . . 22 13 Electromagnetic 11 | . . . 11 . Robot Hit Streak 8 | 3 7 5 8 6 Robot Miss Streak 5 | . 3 1 5 4 Penetration Max . | . . . . . Secondary Targets 1 | . . . 1 . Max Gunslinging Chain 1 | . . . 1 . Shots Hit Robots 120 | 3 31 6 50 30 Core Hits 83 | 2 10 4 32 35 Critical Hits . | . . . . . Critical Kills . | . . . . . Critical Parts Destroyed . | . . . . . Melee Attacks 1 | . . . 1 . Impact . | . . . . . Slashing . | . . . . . Piercing . | . . . . . Sneak Attacks 1 | . . . 1 . Combat Hostiles . | . . . . . Follow-up Attacks . | . . . . . Damage Inflicted 3776 | 34 376 88 1305 1973 Guns 965 | 34 147 76 543 165 Cannons 562 | . 229 . 62 271 Explosions 2226 | . . . 689 1537 Melee . | . . . . . Ramming 23 | . . 12 11 . Kinetic 351 | . 9 . 62 280 Thermal 1089 | 34 367 76 456 156 Explosive 2226 | . . . 689 1537 Electromagnetic 87 | . . . 87 . Impact . | . . . . . Slashing . | . . . . . Piercing . | . . . . . Highest Corruption 3 | . . . 3 . Average Corruption 3 | . . . 3 . Corruption Purged . | . . . . . Effects 2 | . . . 2 . Message Errors 1 | . . . 1 . Targeting Errors 1 | . . . 1 . Overload Shots . | . . . . . Overflow Damage 113 | . 2 . 48 63 Projectiles 2 | . 2 . . . Explosions 111 | . . . 48 63 Melee . | . . . . . Knockbacks 2 | . . . . 2 Impact . | . . . . . Kinetic 2 | . . . . 2 Secondary . | . . . . . Self-Inflicted Damage 367 | . . 3 200 164 Shots 11 | . . . 7 4 Rammed 3 | . . 2 1 . Targets Rammed 7 | . . 6 1 . Kicked 4 | . . 4 . . Crushed . | . . . . . Highest Temperature 615 | 36 615 112 227 432 Average Temperature 119 | 20 173 56 55 167 Received Heat Transfer 846 | . 66 . 132 648 Effects 12 | . 10 . . 2 Shutdowns 4 | . 3 . . 1 Energy Bleed 2 | . 2 . . . Short Circuit 2 | . 2 . . . Damage (minor) 3 | . 2 . . 1 Damage (core) 1 | . 1 . . . Siege Activations . | . . . . . Robots Corrupted . | . . . . . Combat Hostiles . | . . . . . Parts Fried . | . . . . . Impact Corruptions . | . . . . . Robots Melted . | . . . . . Combat Hostiles . | . . . . . Parts Melted . | . . . . . Heat Transferred 2582 | 75 805 222 1147 333 Parts Sabotaged . | . . . . . Parts Stolen . | . . . . . Parts Stripped . | . . . . . Power Chain Reactions . | . . . . . Missiles Intercepted . | . . . . . Alert | -11 -10 -10 -9 -8 ------- Run | Scr Mat Min Mat Mat Peak Influence 587 | 5 130 101 329 587 Initial 138 | . 3 11 39 138 Average 124 | 1 58 81 102 443 Maximum Alert Level 2 | . . . 1 2 Low Security (%) 80 | 100 100 100 78 18 Level 1 10 | . . . 21 3 Level 2 9 | . . . . 78 Level 3 . | . . . . . Level 4 . | . . . . . Level 5 . | . . . . . High Security . | . . . . . Max Security . | . . . . . Squads Dispatched 8 | . . . 4 4 Investigation 4 | . . . 3 1 Extermination . | . . . . . Reinforcement 2 | . . . 1 1 Assault 1 | . . . . 1 Garrison 1 | . . . . 1 Intercept . | . . . . . Construction Impeded . | . . . . . Haulers Reinforced . | . . . . . Stealth | -11 -10 -10 -9 -8 --------- Run | Scr Mat Min Mat Mat Distress Signals 1 | . . . 1 . Communications Jammed . | . . . . . Distress Signals . | . . . . . Times Spotted 71 | . 9 9 29 24 Peak Tracking Total 9 | . 4 8 6 9 Tactical Retreats 5 | . 1 3 . 1 Traps | -11 -10 -10 -9 -8 ------- Run | Scr Mat Min Mat Mat Traps Triggered 1 | . . . . 1 Indirectly . | . . . . . Trap Hack Attempts . | . . . . . Triggered . | . . . . . Disarmed 6 | . . . 6 . Reprogrammed . | . . . . . Reused . | . . . . . Traps Extracted . | . . . . . Installed . | . . . . . Triggered . | . . . . . Machines | -11 -10 -10 -9 -8 ---------- Run | Scr Mat Min Mat Mat Machines Disabled 6 | . . . 3 3 Max in Single Turn 1 | . . . 1 1 Garrison Access 1 | . . . . 1 Machines Sabotaged . | . . . . . Garrisons Compromised . | . . . . . Overloaded Fab Kills . | . . . . . Fab Network Shutdowns . | . . . . . Hacking | -11 -10 -10 -9 -8 --------- Run | Scr Mat Min Mat Mat Machines Accessed 16 | . 3 1 11 1 Terminals 10 | . 2 . 8 . Fabricators . | . . . . . Repair Stations 1 | . . . 1 . Recycling Units 2 | . 1 . 1 . Scanalyzers 1 | . . . 1 . Garrison Access 1 | . . . . 1 Total Hacks 61 | . 10 1 49 1 Successful 41 | . 6 1 33 1 Failed 20 | . 4 . 16 . Catastrophic 1 | . . . 1 . Database Lockouts . | . . . . . Manual . | . . . . . Terminals 35 | . 6 . 29 . Fabricators . | . . . . . Repair Stations 3 | . . . 3 . Recycling Units 11 | . 4 . 7 . Scanalyzers 10 | . . . 10 . Garrison Access 1 | . . . . 1 Terminal Hacks 18 | . 3 1 14 . Record 4 | . . . 4 . Prototype ID Bank 2 | . 1 . 1 . Open Door 1 | . . 1 . . Branch Access Points 1 | . . . 1 . Alert Level 3 | . 1 . 2 . Disarm Traps 1 | . . . 1 . Transport Status 1 | . . . 1 . Hauler Manifests 1 | . . . 1 . Zone Layout 4 | . 1 . 3 . Fabricator Hacks . | . . . . . Repair Station Hacks 3 | . . . 3 . Scan Component 1 | . . . 1 . Repair 1 | . . . 1 . Refit 1 | . . . 1 . Recycling Unit Hacks 9 | . 3 . 6 . Recycle Component 2 | . 1 . 1 . Process 2 | . 1 . 1 . Report Inventory 3 | . 1 . 2 . Retrieve Matter 1 | . . . 1 . Retrieve Components 1 | . . . 1 . Scanalyzer 10 | . . . 10 . Insert Component 5 | . . . 5 . Analyze 5 | . . . 5 . Garrison Access Hacks 1 | . . . . 1 Coupler Status 1 | . . . . 1 Unauthorized Hacks . | . . . . . Terminals . | . . . . . Fabricators . | . . . . . Repair Stations . | . . . . . Recycling Units . | . . . . . Scanalyzers . | . . . . . Garrison Access . | . . . . . Data Cores Recovered . | . . . . . Used . | . . . . . Hacking Detections 14 | . 3 . 11 . Full Trace Events 5 | . 2 . 3 . Feedback Events . | . . . . . Feedback Blocked . | . . . . . Robot Schematics Acquired . | . . . . . Robots Built . | . . . . . Matter . | . . . . . Time . | . . . . . Total Robot Build Rating . | . . . . . Part Schematics Acquired 2 | . . . 2 . Parts Built . | . . . . . Matter . | . . . . . Time . | . . . . . Total Part Build Rating . | . . . . . Parts Repaired 1 | . . . 1 . Time 26 | . . . 26 . Parts Recycled 2 | . 1 . 1 . Recycled Matter 24 | . 19 . 5 . Retrieved Matter 89 | . . . 89 . Retrieved Components 10 | . . . 10 . Parts Scanalyzed 2 | . . . 2 . Part Schematics Acquired 2 | . . . 2 . Parts Damaged . | . . . . . Bothacking | -11 -10 -10 -9 -8 ------------ Run | Scr Mat Min Mat Mat Used RIF Installer . | . . . . . Robots Hacked 1 | . . . 1 . Non-combat 1 | . . . 1 . Combat . | . . . . . Robot Hacks Applied 1 | . . . 1 . parse_system 1 | . . . 1 . Relay Couplers Released 2 | . . . . 2 Machine Destruction 2 | . . . . 2 Robots Rewired . | . . . . . Allies Hacked . | . . . . . Hacks Repelled . | . . . . . Allies | -11 -10 -10 -9 -8 -------- Run | Scr Mat Min Mat Mat Total Allies . | . . . . . Largest Group . | . . . . . Highest-Rated Group . | . . . . . Highest-Rated Ally . | . . . . . Total Orders . | . . . . . Ally Attacks 14 | . . . 14 . Total Damage . | . . . . . Kills . | . . . . . Allies Corrupted . | . . . . . Allies Melted . | . . . . . Intel | -11 -10 -10 -9 -8 ------- Run | Scr Mat Min Mat Mat Robot Analysis Total . | . . . . . Derelict Logs Recovered . | . . . . . Drone Launches 16 | . . . 16 . Drone Recoveries . | . . . . . Exploration | -11 -10 -10 -9 -8 ------------- Run | Scr Mat Min Mat Mat Turns Passed 1651 | 68 500 104 783 196 Spaces Moved 1218 | 40 264 83 718 113 Core 19 | 3 3 1 . 12 Treads 163 | . 163 . . . Legs 24 | . . 11 . 13 Wheels 528 | 37 52 . 439 . Hover . | . . . . . Flight 484 | . 46 71 279 88 Fastest Speed 31 | 50 90 37 34 31 Average Speed 87 | 88 140 50 70 93 Slowest Speed 350 | 100 280 150 280 350 Overloaded Moves . | . . . . . Propulsion Burnouts . | . . . . . Robots Hopped 5 | . . 2 3 . Cave-ins Triggered 1 | . . . 1 . Exploration Rate (%) 26 | 4 27 20 68 13 Regions Visited 4 Branch Regions 1 Pre-discovered Areas . | . . . . . Known Exits Taken 3 | . 1 1 1 . Unknown Exits Taken 1 | 1 . . . . Scrap Searched . | . . . . . Spaces Dug 22 | . . . 22 . Terrain Destroyed 284 | . . . 185 99 Melee . | . . . . . Projectile 2 | . . . 1 1 AOE 282 | . . . 184 98 Terrain Rammed . | . . . . . Walls Destroyed . | . . . . . Machines Disabled . | . . . . . Actions | -11 -10 -10 -9 -8 --------- Run | Scr Mat Min Mat Mat Total 1608 | 67 341 132 907 161 Wait 59 | 8 11 19 21 . Move 1205 | 39 263 78 712 113 Hop 4 | . . 2 2 . Pick Up 57 | 11 12 1 28 5 Fast Attach 15 | 2 3 3 7 . Attach 45 | 5 6 3 20 11 Detach 6 | . . . 6 . Swap 16 | . 4 5 6 1 Drop 42 | . 10 7 25 . Fire 151 | 2 32 8 78 31 Melee 1 | . . . 1 . Ram 1 | . . . 1 . Kick 6 | . . 6 . . Crush . | . . . . . Escape Stasis . | . . . . . Rewire . | . . . . . Trap . | . . . . . Miscellaneous . | . . . . . Route ------- -11/Scrapyard -10/Materials -10/Mines -9/Materials (discovered 3 exits: *Mat / *Min x2) -8/Materials History --------- Turn | Location | Event 34 | -11/Scrapyard | Discovered new exit (range 15) 69 | -11/Scrapyard | Entered Materials 305 | -10/Materials | Build established: Mutant 435 | -10/Materials | Discovered new exit (range 13) 568 | -10/Materials | Identified exit to Mines 569 | -10/Materials | Entered Mines 586 | -10/Mines | Core integrity fell below 50% 631 | -10/Mines | Core integrity fell below 20% 636 | -10/Mines | Found the Drone Emporium 637 | -10/Mines | Found Prototype Device 642 | -10/Mines | Lost 4 parts (1p1n2w) 671 | -10/Mines | Discovered new exit (range 5) 672 | -10/Mines | Identified exit to Materials 673 | -10/Mines | Entered Materials 673 | -9/Materials | Evolved 2 slots: Propulsion x1, Utility x1 675 | -9/Materials | Identified Bomb Drone Bay 700 | -9/Materials | Discovered new exit (range 22) 712 | -9/Materials | Repaired Flight Unit? 744 | -9/Materials | Identified exit to Mines 981 | -9/Materials | Discovered exit to Mines (range 11) 1371 | -9/Materials | Crushed by falling debris 1371 | -9/Materials | Core integrity fell below 50% 1402 | -9/Materials | Lost 3 parts (1n1u1w) 1435 | -9/Materials | Discovered new exit (range 15) 1455 | -9/Materials | Identified exit to Materials 1456 | -9/Materials | Entered another Materials area 1456 | -8/Materials | Evolved 2 slots: Propulsion x2 1479 | -8/Materials | Garrison activated, responded to threat 1533 | -8/Materials | Lost 4 parts (1p2n1w) 1605 | -8/Materials | Core integrity fell below 50% 1613 | -8/Materials | Destroyed 7 combat bots 1642 | -8/Materials | Core integrity fell below 20% 1652 | -8/Materials | Destroyed by G-47 Trooper with Particle Gun Last Messages --------------- G-47 Trooper destroyed. K-01 Serf collects debris. Carbon-fiber Leg destroyed. Slug penetrates G-47 Trooper. K-01 Serf collects debris. Wheel destroyed. K-01 Serf collects debris. Lgt. Angular Momentum Engine destroyed. R-06 Scavenger collects Imp. Heat Sink. K-01 Serf collects debris. Penetrated by Slug. R-06 Scavenger collects Aluminum Leg. K-01 Serf collects debris. R-06 Scavenger collects Lgt. Nuclear Core. Autogun destroyed. K-01 Serf collects debris. Acquired 20 matter. K-01 Serf collects debris. R-06 Scavenger collects Aluminum Leg. Penetrated by Slug. Map ----- +----------------------------------------------------+ | | | | | | | | | | | | | ?????????????######## ##?????????????????????????? | | ?????????????# T #?????????????????????????? | | ?????????????#! """ #?????????????????????????? | | ?????????????# """ #?????????????????????????? | | ?????????????# """ #?????????????????????????? | | ?????????????# = #?????????????????????????? | | ?????????????# """ #??????#####??????????????? | | ?????????????#! """ #??????# #??????????????? | | ?????????????# """ ##??????# #??????????????? | | ?????????????# #???????# #??????????????? | | ?????????? ?#####;#########??# #?????? ??? | | ?????????? ???# #??# ##### #??? | | ????????? #### #??# #??? | | ????????????## #??# #??? | | ???????????##### # ##?# """"""" #??? | | ???????????# ### """"""" #??? | | ???????????# # # ## """""""?????????? | | ???????????### g g ### """""""?????????? | | ???????????# h g """"""" ????? | | ???????????## %%@ ????? | | ???????????# #r """ ????? | | ???????????## # k " """"""" ????? | | ????????????## # """ """""""?? ? ????? | | ????????????# # # # # """"""??????????? | | ??????????? ############ """""???????????? | | ????????? ! """"????????????? | | ???????? % ???????????? | | ???????? %! ??????????? | | ????????? #### w ?????????? | | ???????????## # ???# ###############????????? | | ????????????#?? ""???# #??????????????????????? | | ????????????????? "R???# #??????????????????????? | | ????????????????????????#u#??????????????????????? | | ????????????????????????# #??????????????????????? | | ????????????????????????# #??????????????????????? | | ????????????????????????# ???????????????????????? | | ????????????????????????? ???????????????????????? | | ????????????????????????? ???????????????????????? | | ?????????????????????????????????????????????????? | | ?????????????????????????????????????????????????? | | ?????????????????????????????????????????????????? | | ?????????????????????????????????????????????????? | | ?????????????????????????????????????????????????? | | ?????????????????????????????????????????????????? | +----------------------------------------------------+ Best States ------------- Heat Dissipation 31 Energy Generation 18 Energy Capacity 325 Matter Stores 300 Matter Capacity 300 Sight Range 16 Robot Scan Range 13 Terrain Scan Density 10 ECM Strength 1 Evasion (%) 63 Recoil Reduction 2 Item Schematics ----------------- Lgt. Assault Rifle | -9/Materials | Scanalyzed Cooling System | -9/Materials | Scanalyzed Robot Schematics ------------------ None Fabricated ------------ Nothing Alien Tech Used ----------------- None Achievements -------------- I Spy Release The Drones! Unlikely Earthworm Challenges ------------ None Game ------ Seed BombSigixTreads Manual? 0 Play Time 01:06:18 Cumulative 11.2 hours Start 2021.07.07 @ 02:24:44 End 2021.07.08 @ 18:07:06 Sessions 3 Manual Loads 0 Difficulty Rogue Special Mode None Game No. 22 Rogue 22 Adventurer 0 Explorer 0 Win Type - Total 0 Types 0/0/0/0/0/0/0/0/0 Lore% 16 Gallery% 20 Achievement% 14 Wizard Run 0 Options --------- ASCII 0 Keyboard 0 Movement Mouse Keybinds 0 Fullscreen 1 Font 18/SmallcapsGlow Map View 76x50 Tactical HUD 0 Map Filters NONE Filters NONE Steam 1 RUN: 0df90a01-5462-41d7-b069-4252df117103